fUST/lending_fUST_20250424
["ID","MTS","AMOUNT","RATE_DAILY","PERIOD"]
[358836450,1745488235446,-500.0,0.00019178,2]
[358836451,1745488235456,-500.0,0.00019178,2]
[358836452,1745488235465,-321.65078627,0.00019178,2]
[358836453,1745488235475,-500.0,0.00019178,2]
[358836454,1745488235487,-500.0,0.00019178,2]
[358836455,1745488235497,-932.58,0.00019178,2]
[358836456,1745488235507,-556.46,0.00019178,2]
[358836457,1745488235517,-500.0,0.00019178,2]
[358836458,1745488235527,-500.0,0.00019178,2]
[358836459,1745488235536,-500.0,0.00019178,2]
[358836460,1745488235545,-500.0,0.00019178,2]
[358836461,1745488235555,-500.0,0.00019178,2]
[358836462,1745488235564,-500.0,0.00019178,2]
[358836463,1745488235574,-638.2,0.00019178,2]
[358836464,1745488235583,-590.29,0.00019178,2]
[358836465,1745488235592,-151.899093,0.00019178,2]
[358836466,1745488235602,-527.8,0.00019178,2]
[358836467,1745488235612,-817.92,0.00019178,2]
[358836468,1745488235621,-500.0,0.00019178,2]
[358836469,1745488235630,-955.06,0.00019178,2]
[358836470,1745488235640,-598.21,0.00019178,2]
[358836471,1745488235649,-500.0,0.00019178,2]
[358836472,1745488235658,-500.0,0.00019178,2]
[358836473,1745488235668,-500.0,0.00019178,2]
[358836474,1745488235677,-729.49,0.00019178,2]
[358836475,1745488235687,-500.0,0.00019178,2]
[358836476,1745488235696,-578.42208905,0.00019178,2]
[358836477,1745488235706,-500.0,0.00019178,2]
[358836478,1745488235715,-500.0,0.00019178,2]
[358836479,1745488235724,-934.32,0.00019178,2]
[358836480,1745488235734,-500.0,0.00019178,2]
[358836481,1745488235743,-731.78,0.00019178,2]
[358836482,1745488235753,-500.0,0.00019178,2]
[358836483,1745488235763,-259.65935523,0.00019178,2]
[358836484,1745488235772,-151.0,0.00019178,2]
[358836485,1745488235782,-2212.65,0.00019178,2]
[358836486,1745488235791,-500.0,0.00019178,2]
[358836487,1745488235801,-500.0,0.00019178,2]
[358836488,1745488235811,-500.0,0.00019178,2]
[358836489,1745488235821,-500.0,0.00019178,2]
[358836490,1745488235830,-521.38908775,0.00019178,2]
[358836491,1745488235840,-500.0,0.00019178,2]
[358836492,1745488235849,-520.54352888,0.00019178,2]
[358836493,1745488235859,-500.0,0.00019178,2]
[358836494,1745488235871,-500.0,0.00019178,2]
[358836495,1745488235884,-500.0,0.00019178,2]
[358836496,1745488235893,-508.92152317,0.00019178,2]
[358836497,1745488235903,-500.0,0.00019178,2]
[358836498,1745488235912,-500.0,0.00019178,2]
[358836499,1745488235922,-502.82,0.00019178,2]
[358836500,1745488235931,-151.0,0.00019178,2]
[358836501,1745488235941,-151.0,0.00019178,2]
[358836502,1745488235951,-500.0,0.00019178,2]
[358836503,1745488235960,-334.73014194,0.00019178,2]
[358836504,1745488236116,-500.0,0.00019178,2]
[358836505,1745488236126,-500.0,0.00019178,2]
[358836506,1745488236137,-647.24,0.00019178,2]
[358836507,1745488236146,-1022.45,0.00019178,2]
[358836508,1745488236155,-510.34,0.00019178,2]
[358836509,1745488236165,-500.34648851,0.00019178,2]
[358836510,1745488236177,-583.87812834,0.00019178,2]
[358836511,1745488236187,-500.0,0.00019178,2]
[358836512,1745488236196,-500.0,0.00019178,2]
[358836513,1745488236206,-442.77863858,0.00019178,2]
[358836514,1745488236215,-151.0,0.00019178,2]
[358836515,1745488236224,-500.0,0.00019178,2]
[358836516,1745488236235,-151.0,0.00019178,2]
[358836517,1745488236244,-500.0,0.00019178,2]
[358836518,1745488236253,-500.0,0.00019178,2]
[358836519,1745488236263,-500.0,0.00019178,2]
[358836520,1745488236272,-500.0,0.00019178,2]
[358836521,1745488236282,-500.0,0.00019178,2]
[358836522,1745488236291,-500.0,0.00019178,2]
[358836523,1745488236300,-500.0,0.00019178,2]
[358836524,1745488236310,-5344.89,0.00019178,2]
[358836525,1745488236320,-500.0,0.00019178,2]
[358836526,1745488236329,-500.0,0.00019178,2]
[358836527,1745488236340,-500.0,0.00019178,2]
[358836528,1745488236351,-500.0,0.00019178,2]
[358836529,1745488236360,-500.0,0.00019178,2]
[358836530,1745488236369,-508.59104088,0.00019178,2]
[358836531,1745488236380,-500.0,0.00019178,2]
[358836532,1745488236390,-500.0,0.00019178,2]
[358836533,1745488236399,-157.99606669,0.00019178,2]
[358836534,1745488236409,-602.59,0.00019178,2]
[358836535,1745488236421,-500.0,0.00019178,2]
[358836536,1745488236430,-303.61906979,0.00019178,2]
[358836537,1745488236439,-500.0,0.00019178,2]
[358836538,1745488236449,-500.0,0.00019178,2]
[358836539,1745488236463,-500.0,0.00019178,2]
[358836540,1745488236473,-891.93,0.00019178,2]
[358836541,1745488236483,-500.0,0.00019178,2]
[358836542,1745488236493,-506.33442829,0.00019178,2]
[358836543,1745488236502,-1630.69,0.00019178,2]
[358836544,1745488236512,-500.71552686,0.00019178,2]
[358836545,1745488236522,-155.86290271,0.00019178,2]
[358836546,1745488236532,-500.0,0.00019178,2]
[358836547,1745488236541,-500.0,0.00019178,2]
[358836548,1745488236551,-500.0,0.00019178,2]
[358836549,1745488236561,-501.78180138,0.00019178,2]
[358836550,1745488236570,-502.39580895,0.00019178,2]
[358836551,1745488236579,-1238.92,0.00019178,2]
[358836552,1745488236589,-1145.87,0.00019178,2]
[358836553,1745488236599,-500.0,0.00019178,2]
[358836554,1745488236608,-500.0,0.00019178,2]
[358836555,1745488236617,-2112.91,0.00019178,2]
[358836556,1745488236627,-500.0,0.00019178,2]
[358836557,1745488236636,-500.0,0.00019178,2]
[358836558,1745488236645,-500.0,0.00019178,2]
[358836559,1745488236655,-500.0,0.00019178,2]
[358836560,1745488236665,-500.0,0.00019178,2]
[358836561,1745488236675,-500.0,0.00019178,2]
[358836562,1745488236684,-500.0,0.00019178,2]
[358836563,1745488236694,-841.84,0.00019178,2]
[358836564,1745488236704,-256.31637497,0.00019178,2]
[358836565,1745488236714,-500.0,0.00019178,2]
[358836566,1745488236726,-151.0,0.00019178,2]
[358836567,1745488236735,-151.0,0.00019178,2]
[358836568,1745488236744,-557.8,0.00019178,2]
[358836569,1745488236754,-500.0,0.00019178,2]
[358836570,1745488236763,-500.0,0.00019178,2]
[358836571,1745488236773,-151.0,0.00019178,2]
[358836572,1745488236782,-500.0,0.00019178,2]
[358836573,1745488236791,-169.14493145,0.00019178,2]
[358836574,1745488236800,-941.18,0.00019178,2]
[358836575,1745488236809,-151.33141315,0.00019178,2]
[358836576,1745488236818,-501.25369205,0.00019178,2]
[358836577,1745488236828,-151.0,0.00019178,2]
[358836578,1745488236837,-1454.89,0.00019178,2]
[358836579,1745488236846,-567.43,0.00019178,2]
[358836580,1745488236856,-151.17892941,0.00019178,2]
[358836581,1745488236866,-151.0,0.00019178,2]
[358836582,1745488236876,-151.0,0.00019178,2]
[358836583,1745488236886,-500.0,0.00019178,2]
[358836584,1745488236898,-500.0,0.00019178,2]
[358836585,1745488236908,-1021.19,0.00019178,2]
[358836586,1745488236917,-500.0,0.00019178,2]
[358836587,1745488236927,-500.0,0.00019178,2]
[358836588,1745488236936,-500.0,0.00019178,2]
[358836589,1745488236948,-1671.63,0.00019178,2]
[358836590,1745488236958,-599.2,0.00019178,2]
[358836591,1745488236972,-500.0,0.00019178,2]
[358836592,1745488236982,-797.67,0.00019178,2]
[358836593,1745488236992,-500.0,0.00019178,2]
[358836594,1745488237001,-500.0,0.00019178,2]
[358836595,1745488237011,-721.1,0.00019178,2]
[358836596,1745488237021,-4810.29,0.00019178,2]
[358836597,1745488237032,-500.0,0.00019178,2]
[358836598,1745488237042,-3742.84,0.00019178,2]
[358836599,1745488237052,-601.15693754,0.00019178,2]
[358836600,1745488237061,-500.0,0.00019178,2]
[358836601,1745488237071,-500.0,0.00019178,2]
[358836602,1745488237080,-1449.38,0.00019178,2]
[358836603,1745488237090,-2936.41,0.00019178,2]
[358836604,1745488237099,-2936.41,0.00019178,2]
[358836605,1745488237108,-2936.41,0.00019178,2]
[358836606,1745488237118,-2936.41,0.00019178,2]
[358836607,1745488237127,-2936.41,0.00019178,2]
[358836608,1745488237137,-2936.41,0.00019178,2]
[358836609,1745488237146,-2936.41,0.00019178,2]
[358836610,1745488237155,-2936.41,0.00019178,2]
[358836611,1745488237164,-2936.41,0.00019178,2]
[358836612,1745488237174,-2936.41,0.00019178,2]
[358836613,1745488237183,-2936.41,0.00019178,2]
[358836614,1745488237193,-2936.41,0.00019178,2]
[358836615,1745488237203,-2936.41,0.00019178,2]
[358836616,1745488237212,-2936.41,0.00019178,2]
[358836617,1745488237222,-752.79,0.00019178,2]
[358836618,1745488237232,-2936.41,0.00019178,2]
[358836619,1745488237242,-2936.41,0.00019178,2]
[358836620,1745488237252,-2936.41,0.00019178,2]
[358836621,1745488237261,-2936.41,0.00019178,2]
[358836622,1745488237271,-2936.41,0.00019178,2]
[358836623,1745488237280,-500.0,0.00019178,2]
[358836624,1745488237289,-2936.41,0.00019178,2]
[358836625,1745488237299,-2936.41,0.00019178,2]
[358836626,1745488237309,-2936.41,0.00019178,2]
[358836627,1745488237318,-2936.41,0.00019178,2]
[358836628,1745488237329,-2936.51709236,0.00019178,2]
[358836629,1745488237342,-1068.32,0.00019178,2]
[358836630,1745488237352,-500.0,0.00019178,2]
[358836631,1745488237361,-3419.55,0.00019178,2]
[358836632,1745488237370,-151.0,0.00019178,2]
[358836633,1745488237380,-518.99,0.00019178,2]
[358836634,1745488237390,-500.0,0.00019178,2]
[358836635,1745488237399,-1035.89,0.00019178,2]
[358836636,1745488237409,-500.0,0.00019178,2]
[358836637,1745488237420,-514.36190724,0.00019178,2]
[358836638,1745488237429,-151.26357793,0.00019178,2]
[358836639,1745488237439,-500.0,0.00019178,2]
[358836640,1745488237449,-500.0,0.00019178,2]
[358836641,1745488237459,-151.0,0.00019178,2]
[358836642,1745488237469,-500.0,0.00019178,2]
[358836643,1745488237479,-500.0,0.00019178,2]
[358836644,1745488237489,-500.0,0.00019178,2]
[358836645,1745488237499,-500.0,0.00019178,2]
[358836646,1745488237509,-289.10962826,0.00019178,2]
[358836647,1745488237519,-500.0,0.00019178,2]
[358836648,1745488237529,-500.0,0.00019178,2]
[358836649,1745488237539,-500.0,0.00019178,2]
[358836650,1745488237548,-500.0,0.00019178,2]
[358836651,1745488237558,-500.0,0.00019178,2]
[358836652,1745488237568,-500.0,0.00019178,2]
[358836653,1745488237578,-500.0,0.00019178,2]
[358836654,1745488237589,-1226.42,0.00019178,2]
[358836655,1745488237598,-500.0,0.00019178,2]
[358836656,1745488237607,-500.0,0.00019178,2]
[358836657,1745488237617,-500.0,0.00019178,2]
[358836658,1745488237627,-1918.93,0.00019178,2]
[358836659,1745488237637,-151.0,0.00019178,2]
[358836660,1745488237646,-500.0,0.00019178,2]
[358836661,1745488237656,-151.0,0.00019178,2]
[358836662,1745488237666,-151.0,0.00019178,2]
[358836663,1745488237675,-500.0,0.00019178,2]
[358836664,1745488237686,-2673.45,0.00019178,2]
[358836665,1745488237696,-500.0,0.00019178,2]
[358836666,1745488237705,-500.0,0.00019178,2]
[358836667,1745488237715,-151.0,0.00019178,2]
[358836668,1745488237725,-151.0,0.00019178,2]
[358836669,1745488237735,-151.0,0.00019178,2]
[358836670,1745488237745,-500.0,0.00019178,2]
[358836671,1745488237755,-500.0,0.00019178,2]
[358836672,1745488237765,-454.23525332,0.00019178,2]
[358836673,1745488237774,-500.0,0.00019178,2]
[358836674,1745488237784,-500.0,0.00019178,2]
[358836675,1745488237795,-500.0,0.00019178,2]
[358836676,1745488237805,-254.06220457,0.00019178,2]
[358836677,1745488237815,-500.0,0.00019178,2]
[358836678,1745488237826,-500.0,0.00019178,2]
[358836679,1745488237837,-500.0,0.00019178,2]
[358836680,1745488237846,-500.0,0.00019178,2]
[358836681,1745488237855,-500.0,0.00019178,2]
[358836682,1745488237865,-500.0,0.00019178,2]
[358836683,1745488237874,-500.0,0.00019178,2]
[358836684,1745488237883,-500.0,0.00019178,2]
[358836685,1745488237893,-500.0,0.00019178,2]
[358836686,1745488237902,-500.0,0.00019178,2]
[358836687,1745488237912,-500.0,0.00019178,2]
[358836689,1745488237921,-977.95,0.00019178,2]
[358836691,1745488237930,-507.73,0.00019178,2]
[358836693,1745488237939,-500.0,0.00019178,2]
[358836695,1745488237949,-500.0,0.00019178,2]
[358836697,1745488237958,-500.80542569,0.00019178,2]
[358836699,1745488237968,-500.0,0.00019178,2]
[358836701,1745488237978,-194.21814387,0.00019178,2]
[358836703,1745488237987,-441.8037443,0.00019178,2]
[358836705,1745488237997,-871.35,0.00019178,2]
[358836708,1745488238007,-501.00251444,0.00019178,2]
[358836710,1745488238016,-500.0,0.00019178,2]
[358836711,1745488238025,-500.0,0.00019178,2]
[358836713,1745488238034,-1315.76,0.00019178,2]
[358836715,1745488238044,-500.0,0.00019178,2]
[358836716,1745488238053,-500.0,0.00019178,2]
[358836718,1745488238062,-500.0,0.00019178,2]
[358836719,1745488238071,-710.42,0.00019178,2]
[358836720,1745488238080,-475.15000393,0.00019178,2]
[358836721,1745488238091,-500.0,0.00019178,2]
[358836722,1745488238100,-500.0,0.00019178,2]
[358836723,1745488238111,-500.0,0.00019178,2]
[358836725,1745488238120,-500.0,0.00019178,2]
[358836727,1745488238130,-500.0,0.00019178,2]
[358836728,1745488238140,-500.0,0.00019178,2]
[358836730,1745488238149,-3870.04,0.00019178,2]
[358836731,1745488238158,-504.62062538,0.00019178,2]
[358836732,1745488238169,-500.0,0.00019178,2]
[358836734,1745488238178,-151.0,0.00019178,2]
[358836736,1745488238188,-500.0,0.00019178,2]
[358836737,1745488238198,-503.54395396,0.00019178,2]
[358836738,1745488238207,-500.0,0.00019178,2]
[358836739,1745488238217,-151.0,0.00019178,2]
[358836740,1745488238227,-2382.8,0.00019178,2]
[358836741,1745488238237,-1298.85,0.00019178,2]
[358836742,1745488238246,-436.02951861,0.00019178,2]
[358836744,1745488239698,-65.03816182,0.00019178,2]
[358836745,1745488239708,-500.0,0.00019178,2]
[358836746,1745488239719,-199.826802,0.00019178,2]
[358836747,1745488239730,-153.36049474,0.00019178,2]
[358836748,1745488239742,-500.0,0.00019178,2]
[358836749,1745488239752,-500.0,0.00019178,2]
[358836750,1745488239761,-4794.9,0.00019178,2]
[358836751,1745488239770,-500.0,0.00019178,2]
[358836752,1745488239779,-151.0,0.00019178,2]
[358836753,1745488239789,-151.0,0.00019178,2]
[358836754,1745488239798,-526.78439953,0.00019178,2]
[358836755,1745488239808,-500.0,0.00019178,2]
[358836756,1745488239817,-500.0,0.00019178,2]
[358836757,1745488239827,-500.0,0.00019178,2]
[358836758,1745488239836,-500.0,0.00019178,2]
[358836759,1745488239845,-4502.71,0.00019178,2]
[358836760,1745488239854,-500.0,0.00019178,2]
[358836761,1745488239863,-552.48,0.00019178,2]
[358836762,1745488239873,-500.0,0.00019178,2]
[358836763,1745488239882,-4495.81,0.00019178,2]
[358836764,1745488239892,-759.39,0.00019178,2]
[358836765,1745488239903,-500.0,0.00019178,2]
[358836766,1745488239913,-753.44,0.00019178,2]
[358836767,1745488239923,-500.0,0.00019178,2]
[358836768,1745488239932,-500.0,0.00019178,2]
[358836769,1745488239942,-1903.93,0.00019178,2]
[358836770,1745488239951,-500.0,0.00019178,2]
[358836771,1745488239960,-733.32,0.00019178,2]
[358836772,1745488239970,-500.0,0.00019178,2]
[358836773,1745488239980,-500.0,0.00019178,2]
[358836774,1745488239990,-500.0,0.00019178,2]
[358836775,1745488239999,-500.0,0.00019178,2]
[358836776,1745488240009,-894.56,0.00019178,2]
[358836777,1745488240018,-7116.79,0.00019178,2]
[358836778,1745488240028,-500.0,0.00019178,2]
[358836779,1745488240038,-6000.49,0.00019178,2]
[358836780,1745488240047,-500.0,0.00019178,2]
[358836781,1745488240058,-821.62,0.00019178,2]
[358836782,1745488240068,-500.0,0.00019178,2]
[358836783,1745488240077,-500.0,0.00019178,2]
[358836784,1745488240087,-500.0,0.00019178,2]
[358836785,1745488240096,-720.46,0.00019178,2]
[358836786,1745488240105,-500.0,0.00019178,2]
[358836787,1745488240114,-500.0,0.00019178,2]
[358836788,1745488240124,-500.0,0.00019178,2]
[358836789,1745488240133,-500.0,0.00019178,2]
[358836790,1745488240143,-3096.95,0.00019178,2]
[358836791,1745488240153,-866.69,0.00019178,2]
[358836792,1745488240163,-505.61932533,0.00019178,2]
[358836793,1745488240172,-502.34817361,0.00019178,2]
[358836794,1745488240181,-500.0,0.00019178,2]
[358836795,1745488240191,-500.0,0.00019178,2]
[358836796,1745488240200,-500.0,0.00019178,2]
[358836797,1745488240210,-500.0,0.00019178,2]
[358836798,1745488240220,-5455.01,0.00019178,2]
[358836799,1745488240229,-500.0,0.00019178,2]
[358836800,1745488240239,-500.0,0.00019178,2]
[358836801,1745488240248,-500.0,0.00019178,2]
[358836802,1745488240257,-517.52997165,0.00019178,2]
[358836803,1745488240270,-1155.18,0.00019178,2]
[358836804,1745488240279,-500.0,0.00019178,2]
[358836805,1745488240288,-500.0,0.00019178,2]
[358836806,1745488240298,-500.0,0.00019178,2]
[358836807,1745488240309,-500.0,0.00019178,2]
[358836808,1745488240318,-500.0,0.00019178,2]
[358836809,1745488240327,-846.86,0.00019178,2]
[358836810,1745488240337,-500.0,0.00019178,2]
[358836811,1745488240350,-500.0,0.00019178,2]
[358836812,1745488240359,-151.0,0.00019178,2]
[358836813,1745488240368,-500.0,0.00019178,2]
[358836814,1745488240378,-500.0,0.00019178,2]
[358836815,1745488240389,-500.0,0.00019178,2]
[358836816,1745488240398,-500.0,0.00019178,2]
[358836817,1745488240407,-502.76787948,0.00019178,2]
[358836818,1745488240419,-601.27,0.00019178,2]
[358836819,1745488240428,-500.0,0.00019178,2]
[358836820,1745488240438,-711.05,0.00019178,2]
[358836821,1745488240447,-500.0,0.00019178,2]
[358836822,1745488240456,-500.0,0.00019178,2]
[358836823,1745488240466,-500.0,0.00019178,2]
[358836824,1745488240476,-500.0,0.00019178,2]
[358836825,1745488240492,-294.07193518,0.00019178,2]
[358836826,1745488240502,-629.02870263,0.00019178,2]
[358836827,1745488240513,-300.0,0.00019178,2]
[358836828,1745488240524,-174.8338161,0.00019205,2]
[358836829,1745488240534,-174.8338161,0.00019205,2]
[358836830,1745488240544,-280.3114072,0.00019205,2]
[358836831,1745488240555,-500.0,0.00019233,2]
[358836832,1745488240567,-500.0,0.00019233,2]
[358836833,1745488240578,-172.73930877,0.00019233,2]
[358836834,1745488240587,-500.0,0.00019233,2]
[358836835,1745488240596,-500.0,0.00019233,2]
[358836836,1745488240606,-500.0,0.00019233,2]
[358836837,1745488240615,-500.0,0.00019233,2]
[358836838,1745488240626,-212.25915642,0.00019233,2]
[358836839,1745488240635,-151.0,0.00019233,2]
[358836840,1745488240644,-151.43275294,0.00019233,2]
[358836841,1745488240654,-500.0,0.00019233,2]
[358836842,1745488240664,-151.36763847,0.00019233,2]
[358836843,1745488240801,-151.0,0.00019233,2]
[358836844,1745488240812,-155.52276409,0.00019233,2]
[358836845,1745488240823,-500.0,0.00019233,2]
[358836846,1745488240832,-251.72418231,0.00019233,2]
[358836847,1745488240842,-500.0,0.00019233,2]
[358836848,1745488240852,-500.0,0.00019233,2]
[358836849,1745488240861,-494.98837596,0.00019233,2]
[358836850,1745488240870,-151.0,0.00019287,2]
[358836851,1745488240879,-151.0,0.00019287,2]
[358836852,1745488240889,-160.0,0.00019287,3]
[358836853,1745488240900,-311.98754038,0.00019288,2]
[358836854,1745488240909,-500.0,0.00019288,2]
[358836855,1745488240920,-500.0,0.00019288,2]
[358836856,1745488240930,-500.0,0.00019288,2]
[358836857,1745488240940,-500.0,0.00019288,2]
[358836858,1745488240949,-500.0,0.00019288,2]
[358836859,1745488240958,-184.50677802,0.00019288,2]
[358836860,1745488240968,-500.0,0.00019288,2]
[358836861,1745488240977,-151.0,0.00019288,2]
[358836862,1745488240987,-500.0,0.00019288,2]
[358836863,1745488240995,-500.0,0.00019288,2]
[358836864,1745488241004,-500.0,0.00019288,2]
[358836865,1745488241014,-1430.35827332,0.00019329,2]
[358836866,1745488241024,-500.0,0.00019342,2]
[358836867,1745488241033,-500.0,0.00019342,2]
[358836868,1745488241042,-500.0,0.00019342,2]
[358836869,1745488241052,-500.0,0.00019342,2]
[358836870,1745488241061,-355.13046677,0.00019342,2]
[358836871,1745488241070,-501.78110483,0.00019342,2]
[358836872,1745488241079,-151.0,0.00019342,2]
[358836873,1745488241089,-500.0,0.00019342,2]
[358836874,1745488241098,-500.0,0.00019342,2]
[358836875,1745488241108,-295.02008718,0.00019342,2]
[358836876,1745488241117,-500.0,0.00019397,2]
[358836877,1745488241128,-500.0,0.00019397,2]
[358836878,1745488241138,-500.0,0.00019397,2]
[358836879,1745488241147,-303.68268415,0.00019397,2]
[358836880,1745488241157,-151.0,0.00019397,2]
[358836881,1745488241166,-500.0,0.00019397,2]
[358836882,1745488241176,-500.0,0.00019397,2]
[358836883,1745488241185,-151.0,0.00019451,2]
[358836884,1745488241194,-151.0,0.00019451,2]
[358836885,1745488241203,-840.0731918,0.00019451,3]
[358836886,1745488241213,-12576.49486522,0.00019451,3]
[358836887,1745488241222,-45145.26867412,0.00019452,3]
[358836888,1745488241231,-500.0,0.00019452,2]
[358836889,1745488241241,-500.0,0.00019452,2]
[358836890,1745488241250,-500.0,0.00019452,2]
[358836891,1745488241259,-155.01633093,0.00019452,2]
[358836892,1745488241269,-507.49669063,0.00019452,2]
[358836893,1745488241278,-437.46952264,0.00019452,2]
[358836894,1745488241289,-151.0,0.00019452,2]
[358836895,1745488241299,-151.0,0.00019452,2]
[358836896,1745488241308,-151.0,0.00019452,2]
[358836897,1745488241318,-151.0,0.00019452,2]
[358836898,1745488241327,-151.0,0.00019452,2]
[358836899,1745488241337,-151.0,0.00019452,2]
[358836900,1745488241349,-151.0,0.00019452,2]
[358836901,1745488241359,-151.0,0.00019452,2]
[358836902,1745488241368,-151.0,0.00019452,2]
[358836903,1745488241378,-151.0,0.00019452,2]
[358836904,1745488241389,-151.0,0.00019452,2]
[358836905,1745488241398,-175.835235,0.00019452,2]
[358836906,1745488241407,-151.0,0.00019452,2]
[358836907,1745488241417,-162.44363,0.00019452,2]
[358836908,1745488241426,-500.0,0.00019452,2]
[358836909,1745488241435,-500.0,0.00019452,2]
[358836910,1745488241444,-500.0,0.00019452,2]
[358836911,1745488241454,-500.0,0.00019452,2]
[358836912,1745488241464,-500.0,0.00019452,2]
[358836913,1745488241474,-151.2579903,0.00019452,2]
[358836914,1745488241483,-151.33021459,0.00019452,2]
[358836915,1745488241492,-500.0,0.00019452,2]
[358836916,1745488241501,-500.0,0.00019452,2]
[358836917,1745488241510,-500.0,0.00019452,2]
[358836918,1745488241521,-500.0,0.00019452,2]
[358836919,1745488241530,-500.0,0.00019452,2]
[358836920,1745488241540,-500.0,0.00019452,2]
[358836921,1745488241549,-500.0,0.00019452,2]
[358836922,1745488241558,-500.0,0.00019452,2]
[358836923,1745488241567,-503.04020327,0.00019452,2]
[358836924,1745488241577,-500.0,0.00019452,2]
[358836925,1745488241586,-500.0,0.00019452,2]
[358836926,1745488241595,-500.0,0.00019452,2]
[358836927,1745488241604,-500.0,0.00019452,2]
[358836928,1745488241613,-500.0,0.00019452,2]
[358836929,1745488241622,-500.0,0.00019452,2]
[358836930,1745488241632,-500.0,0.00019452,2]
[358836931,1745488241641,-500.0,0.00019452,2]
[358836932,1745488241650,-506.8,0.00019452,2]
[358836933,1745488241660,-311.37433038,0.00019452,2]
[358836934,1745488241669,-500.0,0.00019452,2]
[358836935,1745488241678,-500.0,0.00019452,2]
[358836936,1745488241687,-396.07372579,0.00019452,2]
[358836937,1745488241696,-151.0,0.00019452,2]
[358836938,1745488241705,-151.0,0.00019452,2]
[358836939,1745488241714,-500.0,0.00019452,2]
[358836940,1745488241723,-500.0,0.00019452,2]
[358836941,1745488241732,-500.0,0.00019452,2]
[358836942,1745488241742,-500.0,0.00019452,2]
[358836943,1745488241751,-500.0,0.00019452,2]
[358836944,1745488241760,-500.0,0.00019452,2]
[358836945,1745488241770,-762.07,0.00019452,2]
[358836946,1745488241779,-274.26744625,0.00019452,2]
[358836947,1745488241788,-319.91978056,0.00019452,2]
[358836948,1745488241797,-607.75,0.00019452,2]
[358836949,1745488241806,-500.0,0.00019452,2]
[358836950,1745488241815,-528.38,0.00019452,2]
[358836951,1745488241825,-500.0,0.00019452,2]
[358836952,1745488241834,-8100.0,0.00019452,2]
[358836953,1745488241843,-8100.0,0.00019452,2]
[358836954,1745488241853,-500.0,0.00019452,2]
[358836955,1745488241862,-500.0,0.00019452,2]
[358836956,1745488241872,-500.0,0.00019452,2]
[358836957,1745488241882,-500.0,0.00019452,2]
[358836958,1745488241891,-500.0,0.00019452,2]
[358836959,1745488241901,-486.60195162,0.00019452,2]
[358836960,1745488241910,-500.0,0.00019452,2]
[358836961,1745488241918,-500.0,0.00019452,2]
[358836962,1745488241928,-500.0,0.00019452,2]
[358836963,1745488241937,-576.8598019,0.00019452,2]
[358836964,1745488241946,-218.85743645,0.00019452,2]
[358836965,1745488241955,-500.0,0.00019452,2]
[358836966,1745488241965,-500.0,0.00019452,2]
[358836967,1745488241974,-500.0,0.00019452,2]
[358836968,1745488241983,-500.0,0.00019452,2]
[358836969,1745488241992,-500.0,0.00019452,2]
[358836970,1745488242001,-500.0,0.00019452,2]